{"text_format":"1","workbook":"xlsx","n_sheets":4,"sheets":["свод","3.1-КЖ1_индикатив","3.2-КЖ1_индикатив","ТКП"],"not_rendered":{"charts":0,"images":0,"macros":1,"external_links":2,"defined_names":4,"comments":0,"pivot_tables":0},"unopened":[],"bounds":{"document_bytes":16777216,"sheet_cells":100000,"rows_first":2000,"rows_last":500,"rows_between":2000,"halvings":0,"cell_chars":16384,"cell_head_chars":4096},"cells_cut":0,"cells_raw":0,"read":"whole","date_system":"1900"}

{"sheet":"свод","index":0,"n_rows":14,"n_cols":17,"rows_kept":14,"cut":false,"hidden":false,"merged":[[0,0,0,1],[0,2,0,4],[6,3,6,4],[12,3,12,4],[13,3,13,4],[11,3,11,4],[1,0,1,1],[3,0,3,1],[4,0,4,1]]}
["Наименование закупки: ",null,"Выполнение комплекса строительно-монтажных работ по монтажу подкрановых путей крытого склада №1 и №2 на объекте «Терминал по перевалке минеральных удобрений в морском торговом порту Усть-Луга».\n"]
["Исх. № ______________ от __.__.2023г."]
[]
["Наименование Участника:"]
["ИНН Участника "]
[]
["№ п/п","Наименование","Требование ООО «ЕТУ»","Предложение Участника, руб без НДС",null,"по сметам"]
[null,null,null,"Материалы","Работы","материалы","работа",null,null,null,null,null,null,"материалы","работа"]
[1,"Конструкции железобетонные. Ростверк., 07.03.010 Крытый склад № 1 (код SAP 01.01.001) код ГП 3.1",null,{"$f":"'3.1-КЖ1_индикатив'!K82/1.2","v":309982.43},{"$f":"'3.1-КЖ1_индикатив'!I82/1.2","v":21546138.579999998},{"$f":"'[1]1632-2021-3.1-КЖ1_07.03.010-Сме'!$M$248+'[1]1632-2021-3.1-КЖ1_07.03.010-Сме'!$M$256","v":258938.95},{"$f":"'[1]1632-2021-3.1-КЖ1_07.03.010-Сме'!$M$247+'[1]1632-2021-3.1-КЖ1_07.03.010-Сме'!$M$249+'[1]1632-2021-3.1-КЖ1_07.03.010-Сме'!$M$251+'[1]1632-2021-3.1-КЖ1_07.03.010-Сме'!$M$252","v":15867111.220000001},1.052,1.02,1.04,1.03,1.02,1.03,{"$f":"F9*H9*I9*J9*K9*L9*M10","v":312695.23},{"$f":"G9*H9*I9*J9*K9*L9*M9","v":19161157.379999999},{"$f":"N9+O9","v":19473852.609999999},{"$f":"P9*1.2","v":23368623.129999999}]
[2,"Конструкции железобетонные. Ростверк., 07.03.010 Крытый склад № 2 (код SAP 01.01.001) код ГП 3.1",null,{"$f":"'3.2-КЖ1_индикатив'!K78/1.2","v":593596.53},{"$f":"'3.2-КЖ1_индикатив'!I78/1.2","v":59427975.439999998},{"$f":"'[2]1632-2021-3.2-КЖ1_07.03.010-Сме'!$M$217+'[2]1632-2021-3.2-КЖ1_07.03.010-Сме'!$M$225","v":306199.27},{"$f":"'[2]1632-2021-3.2-КЖ1_07.03.010-Сме'!$M$216+'[2]1632-2021-3.2-КЖ1_07.03.010-Сме'!$M$218+'[2]1632-2021-3.2-КЖ1_07.03.010-Сме'!$M$220+'[2]1632-2021-3.2-КЖ1_07.03.010-Сме'!$M$221","v":48089341.960000001},1.052,1.02,1.04,1.03,1.02,1.03,{"$f":"F10*H10*I10*J10*K10*L10*M9","v":369766.89},{"$f":"G10*H10*I10*J10*K10*L10*M10","v":58072792.009999998},{"$f":"N10+O10","v":58442558.899999999},{"$f":"P10*1.2","v":70131070.680000007}]
[3,"Итоговая стоимость строительно-монтажных работ",null,{"$f":"D9+D10","v":903578.96},{"$f":"E9+E10","v":80974114.019999996},null,null,null,null,null,null,null,null,null,null,null,{"$f":"Q9+Q10","v":93499693.810000002}]
[4,"ВСЕГО",null,{"$f":"D11+E11","v":81877692.980000004},null,null,null,null,null,null,null,null,null,null,null,null,"во сметам сумма 98 млн за счет того,что на полную сумму начисляется ВЗиС"]
[5,"НДС",0.2,{"$f":"D12*0.2","v":16375538.6}]
[6,"Итоговая стоимость СМР, руб с НДС",null,{"$f":"D12+D13","v":98253231.579999998}]

{"sheet":"3.1-КЖ1_индикатив","index":1,"n_rows":83,"n_cols":85,"rows_kept":83,"cut":false,"hidden":false,"merged":[[9,2,9,4],[1,0,1,10],[2,0,2,10],[4,0,4,10],[5,0,5,10],[6,0,6,10],[7,0,7,10],[19,2,19,4],[20,2,20,4],[22,0,22,4],[21,0,21,4],[17,0,17,4],[10,2,10,4],[13,2,13,4],[14,2,14,4],[15,2,15,4],[18,2,18,4],[16,0,16,4],[12,0,12,4],[23,2,23,4],[24,2,24,4],[25,2,25,4],[26,2,26,4],[27,2,27,4],[37,2,37,4],[28,2,28,4],[29,2,29,4],[36,2,36,4],[35,0,35,4],[34,0,34,4],[33,0,33,4],[32,0,32,4],[31,0,31,4],[30,0,30,4],[38,2,38,4],[39,2,39,4],[41,2,41,4],[42,2,42,4],[40,0,40,4],[43,2,43,4],[44,2,44,4],[46,2,46,4],[47,2,47,4],[45,0,45,4],[53,2,53,4],[54,2,54,4],[55,2,55,4],[56,2,56,4],[48,2,48,4],[49,2,49,4],[51,2,51,4],[52,2,52,4],[50,0,50,4],[57,2,57,4],[59,2,59,4],[60,2,60,4],[61,2,61,4],[58,0,58,4],[70,2,70,4],[71,0,71,4],[62,2,62,4],[63,2,63,4],[64,2,64,4],[65,2,65,4],[66,0,66,4],[67,2,67,4],[68,2,68,4],[69,2,69,4],[82,0,82,4],[82,8,82,10],[81,0,81,4],[77,2,77,4],[78,2,78,4],[79,2,79,4],[80,2,80,4],[72,2,72,4],[73,2,73,4],[74,2,74,4],[75,2,75,4],[76,0,76,4]]}
[]
["Терминал по перевалке минеральных удобрений в морском торговом порту Усть-Луга. Береговые объекты терминала",null,null,null,null,null,null,null,null,null,null,null,null,null,null,null,null,null,null,null,null,null,null,"Терминал по перевалке минеральных удобрений в морском торговом порту Усть-Луга. Береговые объекты терминала","","","","","","","","","","","","","","","","",""]
["(наименование стройки)"]
[]
["ЛОКАЛЬНАЯ СМЕТА № 1632-2021-3.1-КЖ1_07.03.010-В02"]
["(локальная смета)"]
["на Конструкции железобетонные. Ростверк., 07.03.010 Крытый склад № 1 (код SAP 01.01.001) код ГП 3.1",null,null,null,null,null,null,null,null,null,null,null,null,null,null,null,null,null,null,null,null,null,null,null,null,null,null,null,null,null,null,null,null,null,null,null,null,null,null,null,null,"на Конструкции железобетонные. Ростверк., 07.03.010 Крытый склад № 1 (код SAP 01.01.001) код ГП 3.1","","","","","","","","","","","","","","","","",""]
["(наименование работ и затрат, наименование объекта)"]
[]
["№ п/п","Обоснование","Наименование работ и затрат",null,null,"Единица измерения","Кол-во","Цена за ед.изм. работ, руб. с НДС","Стоимость работ, всего, руб., с НДС","Цена за ед.изм. материалов, руб. с НДС","Стоимость материалов, всего, руб., с НДС"]
[1,2,3,null,null,4,5,"6","7","8","9"]
[]
["Раздел 1. Рельсовый путь № 1",null,null,null,null,null,null,null,null,null,null,"1,2",null,null,null,null,null,null,null,null,null,null,null,null,null,null,null,null,null,null,null,null,null,null,null,null,null,null,null,null,null,null,null,null,null,null,null,null,null,null,null,null,null,null,null,null,null,null,null,null,null,null,null,null,null,null,null,null,null,null,null,null,null,null,null,null,null,"Раздел 1. Рельсовый путь № 1"]
["1","ТЕР09-03-005-02\nПриказ Администрации ЛО от 20.10.15 №28","Монтаж подкрановых путей: по металлическим  подкрановым балкам для рельсов типа КР\n//вес 83,09 кг./м",null,null,"100 м рельса в одну нитку",6.4989999999999997,{"$f":"I14/L13","v":6214603.0300000003},7457523.6399999997,{"$f":"K14/L13","v":101038.34},121246.01,"1,2",null,null,null,null,null,null,null,null,null,null,null,null,null,null,null,null,null,null,null,null,null,null,null,null,null,null,null,null,null,null,null,null,null,null,null,null,null,null,null,null,null,null,null,null,null,null,null,null,null,null,null,null,null,null,null,null,null,null,null,null,null,null,null,null,null,null,"Монтаж подкрановых путей: по металлическим  подкрановым балкам для рельсов типа КР\n//вес 83,09 кг./м"]
["2\n* Материалы заказчика","ТССЦ-202-0017\nПриказ Администрации ЛО от 20.10.15 №28","Пути подкрановые, марка стали: С 255, крепления и упоры//Рельсовые комплекты",null,null,"т",25.172709999999999,0,0,0,0,"1,2",null,null,null,null,null,null,null,null,null,null,null,null,null,null,null,null,null,null,null,null,null,null,null,null,null,null,null,null,null,null,null,null,null,null,null,null,null,null,null,null,null,null,null,null,null,null,null,null,null,null,null,null,null,null,null,null,null,null,null,null,null,null,null,null,null,null,"Пути подкрановые, марка стали: С 255, крепления и упоры//Рельсовые комплекты"]
["3\n*Материалы заказчика","ТССЦ-202-0016\nПриказ Администрации ЛО от 20.10.15 №28","Пути подкрановые, марка стали: С 255, рельсы железнодорожные",null,null,"т",27.0000955,0,0,0,0,"1,2",null,null,null,null,null,null,null,null,null,null,null,null,null,null,null,null,null,null,null,null,null,null,null,null,null,null,null,null,null,null,null,null,null,null,null,null,null,null,null,null,null,null,null,null,null,null,null,null,null,null,null,null,null,null,null,null,null,null,null,null,null,null,null,null,null,null,"Пути подкрановые, марка стали: С 255, рельсы железнодорожные"]
["Материалы заказчика",null,null,null,null,null,null,0,0,0,0,"1,2",null,null,null,null,null,null,null,null,null,null,null,null,null,null,null,null,null,null,null,null,null,null,null,null,null,null,null,null,null,null,null,null,null,null,null,null,null,null,null,null,null,null,null,null,null,null,null,null,null,null,null,null,null,null,null,null,null,null,null,null,null,null,null,null,null,null,null,null,null,null,"Материалы заказчика"]
["Раздел 2. Рельсовый путь № 2",null,null,null,null,null,null,0,0,0,0,"1,2",null,null,null,null,null,null,null,null,null,null,null,null,null,null,null,null,null,null,null,null,null,null,null,null,null,null,null,null,null,null,null,null,null,null,null,null,null,null,null,null,null,null,null,null,null,null,null,null,null,null,null,null,null,null,null,null,null,null,null,null,null,null,null,null,null,"Раздел 2. Рельсовый путь № 2"]
["4","ТЕР09-03-005-02\nПриказ Администрации ЛО от 20.10.15 №28","Монтаж подкрановых путей: по металлическим  подкрановым балкам для рельсов типа КР\n//вес 83,09 кг./м",null,null,"100 м рельса в одну нитку",6.8545999999999996,6554641.9199999999,7865570.2999999998,106566.76,127880.11,"1,2",null,null,null,null,null,null,null,null,null,null,null,null,null,null,null,null,null,null,null,null,null,null,null,null,null,null,null,null,null,null,null,null,null,null,null,null,null,null,null,null,null,null,null,null,null,null,null,null,null,null,null,null,null,null,null,null,null,null,null,null,null,null,null,null,null,null,"Монтаж подкрановых путей: по металлическим  подкрановым балкам для рельсов типа КР\n//вес 83,09 кг./м"]
["5\n* Материалы заказчика","ТССЦ-202-0017\nПриказ Администрации ЛО от 20.10.15 №28","Пути подкрановые, марка стали: С 255, крепления и упоры//Рельсовые комплекты",null,null,"т",43.106340000000003,0,0,0,0,"1,2",null,null,null,null,null,null,null,null,null,null,null,null,null,null,null,null,null,null,null,null,null,null,null,null,null,null,null,null,null,null,null,null,null,null,null,null,null,null,null,null,null,null,null,null,null,null,null,null,null,null,null,null,null,null,null,null,null,null,null,null,null,null,null,null,null,null,"Пути подкрановые, марка стали: С 255, крепления и упоры//Рельсовые комплекты"]
["6\n* Материалы заказчика","ТССЦ-202-0016\nПриказ Администрации ЛО от 20.10.15 №28","Пути подкрановые, марка стали: С 255, рельсы железнодорожные",null,null,"т",38.8895731,0,0,0,0,"1,2",null,null,null,null,null,null,null,null,null,null,null,null,null,null,null,null,null,null,null,null,null,null,null,null,null,null,null,null,null,null,null,null,null,null,null,null,null,null,null,null,null,null,null,null,null,null,null,null,null,null,null,null,null,null,null,null,null,null,null,null,null,null,null,null,null,null,"Пути подкрановые, марка стали: С 255, рельсы железнодорожные"]
["Материалы заказчика",null,null,null,null,null,null,0,0,0,0,"1,2",null,null,null,null,null,null,null,null,null,null,null,null,null,null,null,null,null,null,null,null,null,null,null,null,null,null,null,null,null,null,null,null,null,null,null,null,null,null,null,null,null,null,null,null,null,null,null,null,null,null,null,null,null,null,null,null,null,null,null,null,null,null,null,null,null,null,null,null,null,null,"Материалы заказчика"]
["Раздел 3. Рельсовый путь № 3",null,null,null,null,null,null,0,0,0,0,"1,2",null,null,null,null,null,null,null,null,null,null,null,null,null,null,null,null,null,null,null,null,null,null,null,null,null,null,null,null,null,null,null,null,null,null,null,null,null,null,null,null,null,null,null,null,null,null,null,null,null,null,null,null,null,null,null,null,null,null,null,null,null,null,null,null,null,"Раздел 3. Рельсовый путь № 3"]
["7","ТЕР09-03-005-02\nПриказ Администрации ЛО от 20.10.15 №28","Монтаж подкрановых путей: по металлическим  подкрановым балкам для рельсов типа КР\n//вес 83,09 кг./м",null,null,"100 м рельса в одну нитку",6.5439999999999996,7400353.1200000001,8880423.7400000002,101737.95,122085.54,"1,2",null,null,null,null,null,null,null,null,null,null,null,null,null,null,null,null,null,null,null,null,null,null,null,null,null,null,null,null,null,null,null,null,null,null,null,null,null,null,null,null,null,null,null,null,null,null,null,null,null,null,null,null,null,null,null,null,null,null,null,null,null,null,null,null,null,null,"Монтаж подкрановых путей: по металлическим  подкрановым балкам для рельсов типа КР\n//вес 83,09 кг./м"]
["8\n* Материалы заказчика","ТССЦ-202-0017\nПриказ Администрации ЛО от 20.10.15 №28","Пути подкрановые, марка стали: С 255, крепления и упоры//Рельсовые комплекты",null,null,"т",12.101000000000001,0,0,0,0,"1,2",null,null,null,null,null,null,null,null,null,null,null,null,null,null,null,null,null,null,null,null,null,null,null,null,null,null,null,null,null,null,null,null,null,null,null,null,null,null,null,null,null,null,null,null,null,null,null,null,null,null,null,null,null,null,null,null,null,null,null,null,null,null,null,null,null,null,"Пути подкрановые, марка стали: С 255, крепления и упоры//Рельсовые комплекты"]
["9\n* Материалы заказчика","ТССЦ-202-0016\nПриказ Администрации ЛО от 20.10.15 №28","Пути подкрановые, марка стали: С 255, рельсы железнодорожные",null,null,"т",4.1096320000000004,0,0,0,0,"1,2",null,null,null,null,null,null,null,null,null,null,null,null,null,null,null,null,null,null,null,null,null,null,null,null,null,null,null,null,null,null,null,null,null,null,null,null,null,null,null,null,null,null,null,null,null,null,null,null,null,null,null,null,null,null,null,null,null,null,null,null,null,null,null,null,null,null,"Пути подкрановые, марка стали: С 255, рельсы железнодорожные"]
["10","ТЕР46-08-012-05\nПриказ Администрации ЛО от 20.10.15 №28","Установка анкеров в отверстия глубиной 100 мм с применением смесей серии MASTERFLOW, диаметр анкера: 20 мм и более",null,null,"100 шт.",13.06,112507.73,135009.28,0,0,"1,2",null,null,null,null,null,null,null,null,null,null,null,null,null,null,null,null,null,null,null,null,null,null,null,null,null,null,null,null,null,null,null,null,null,null,null,null,null,null,null,null,null,null,null,null,null,null,null,null,null,null,null,null,null,null,null,null,null,null,null,null,null,null,null,null,null,null,"Установка анкеров в отверстия глубиной 100 мм с применением смесей серии MASTERFLOW, диаметр анкера: 20 мм и более"]
["11","ТЕР46-08-012-10\nПриказ Администрации ЛО от 20.10.15 №28","На каждые 10 мм изменения глубины отверстия добавлять (уменьшать) к расценке: 46-08-012-05",null,null,"100 шт.",13.06,305427.49,366512.99,0,0,"1,2",null,null,null,null,null,null,null,null,null,null,null,null,null,null,null,null,null,null,null,null,null,null,null,null,null,null,null,null,null,null,null,null,null,null,null,null,null,null,null,null,null,null,null,null,null,null,null,null,null,null,null,null,null,null,null,null,null,null,null,null,null,null,null,null,null,null,"На каждые 10 мм изменения глубины отверстия добавлять (уменьшать) к расценке: 46-08-012-05"]
["12\n* Материалы заказчика","ТССЦ-509-5787\nПриказ Администрации ЛО от 20.10.15 №28\nприменительно","Анкер химический (капсула с клеевым составом) Hilti HIT-HY 150/330",null,null,"шт.",1306,0,0,0,0,"1,2",null,null,null,null,null,null,null,null,null,null,null,null,null,null,null,null,null,null,null,null,null,null,null,null,null,null,null,null,null,null,null,null,null,null,null,null,null,null,null,null,null,null,null,null,null,null,null,null,null,null,null,null,null,null,null,null,null,null,null,null,null,null,null,null,null,null,"Анкер химический (капсула с клеевым составом) Hilti HIT-HY 150/330"]
["13\n* Материалы заказчика","ТССЦ-509-4617\nПриказ Администрации ЛО от 20.10.15 №28\nприменительно","Шпилька анкерная Hilti: HIT-V-5,8 М24х450 (HAS) для использования с химическими анкерами HIT",null,null,"шт.",1306,0,0,0,0,"1,2",null,null,null,null,null,null,null,null,null,null,null,null,null,null,null,null,null,null,null,null,null,null,null,null,null,null,null,null,null,null,null,null,null,null,null,null,null,null,null,null,null,null,null,null,null,null,null,null,null,null,null,null,null,null,null,null,null,null,null,null,null,null,null,null,null,null,"Шпилька анкерная Hilti: HIT-V-5,8 М24х450 (HAS) для использования с химическими анкерами HIT"]
["Раздел 4. Подливка из безусадочного мелкозернистого бетона",null,null,null,null,null,null,0,0,0,0,"1,2",null,null,null,null,null,null,null,null,null,null,null,null,null,null,null,null,null,null,null,null,null,null,null,null,null,null,null,null,null,null,null,null,null,null,null,null,null,null,null,null,null,null,null,null,null,null,null,null,null,null,null,null,null,null,null,null,null,null,null,null,null,null,null,null,null,"Раздел 4. Подливка из безусадочного мелкозернистого бетона"]
["Рельсовый путь № 3 длинна 327,2м толщ (разрез 15-15 лист 282) 54 мм ширина (разрез 15-15 лист 282) - 400 мм",null,null,null,null,null,null,0,0,0,0,"1,2",null,null,null,null,null,null,null,null,null,null,null,null,null,null,null,null,null,null,null,null,null,null,null,null,null,null,null,null,null,null,null,null,null,null,null,null,null,null,null,null,null,null,null,null,null,null,null,null,null,null,null,null,null,null,null,null,null,null,null,null,null,null,null,null,null,null,null,null,null,null,null,"Рельсовый путь № 3 длинна 327,2м толщ (разрез 15-15 лист 282) 54 мм ширина (разрез 15-15 лист 282) - 400 мм"]
["Рельсовый путь № 2 длинна 342,73 м толщ (разрез 3-3 лист 282) 130 мм ширина (разрез 3-3 лист 282) - 600 мм",null,null,null,null,null,null,0,0,0,0,"1,2",null,null,null,null,null,null,null,null,null,null,null,null,null,null,null,null,null,null,null,null,null,null,null,null,null,null,null,null,null,null,null,null,null,null,null,null,null,null,null,null,null,null,null,null,null,null,null,null,null,null,null,null,null,null,null,null,null,null,null,null,null,null,null,null,null,null,null,null,null,null,null,"Рельсовый путь № 2 длинна 342,73 м толщ (разрез 3-3 лист 282) 130 мм ширина (разрез 3-3 лист 282) - 600 мм"]
["Рельсовый путь № 1 длинна 324,95 м толщ (разрез 1-1 лист 282) 150 мм ширина (разрез 1-1 лист 282) - 600 мм",null,null,null,null,null,null,0,0,0,0,"1,2",null,null,null,null,null,null,null,null,null,null,null,null,null,null,null,null,null,null,null,null,null,null,null,null,null,null,null,null,null,null,null,null,null,null,null,null,null,null,null,null,null,null,null,null,null,null,null,null,null,null,null,null,null,null,null,null,null,null,null,null,null,null,null,null,null,null,null,null,null,null,null,"Рельсовый путь № 1 длинна 324,95 м толщ (разрез 1-1 лист 282) 150 мм ширина (разрез 1-1 лист 282) - 600 мм"]
["Раздел 5. Крепление опорных деталей. Лист 282.2, 282.3",null,null,null,null,null,null,0,0,0,0,"1,2",null,null,null,null,null,null,null,null,null,null,null,null,null,null,null,null,null,null,null,null,null,null,null,null,null,null,null,null,null,null,null,null,null,null,null,null,null,null,null,null,null,null,null,null,null,null,null,null,null,null,null,null,null,null,null,null,null,null,null,null,null,null,null,null,null,"Раздел 5. Крепление опорных деталей. Лист 282.2, 282.3"]
["Крепление стоек к ростверку",null,null,null,null,null,null,0,0,0,0,"1,2",null,null,null,null,null,null,null,null,null,null,null,null,null,null,null,null,null,null,null,null,null,null,null,null,null,null,null,null,null,null,null,null,null,null,null,null,null,null,null,null,null,null,null,null,null,null,null,null,null,null,null,null,null,null,null,null,null,null,null,null,null,null,null,null,null,null,null,null,null,null,null,"Крепление стоек к ростверку"]
["14","ТЕР46-08-012-01\nПриказ Администрации ЛО от 20.10.15 №28","Установка анкеров в отверстия глубиной 100 мм с применением смесей серии MASTERFLOW, диаметр анкера: до 8 мм",null,null,"100 шт.",2.96,52875.95,63451.14,0,0,"1,2",null,null,null,null,null,null,null,null,null,null,null,null,null,null,null,null,null,null,null,null,null,null,null,null,null,null,null,null,null,null,null,null,null,null,null,null,null,null,null,null,null,null,null,null,null,null,null,null,null,null,null,null,null,null,null,null,null,null,null,null,null,null,null,null,null,null,"Установка анкеров в отверстия глубиной 100 мм с применением смесей серии MASTERFLOW, диаметр анкера: до 8 мм"]
["15","ТЕР46-08-012-06\nПриказ Администрации ЛО от 20.10.15 №28","На каждые 10 мм изменения глубины отверстия добавлять (уменьшать) к расценке: 46-08-012-01",null,null,"100 шт.",-2.96,-18121.27,-21745.52,0,0,"1,2",null,null,null,null,null,null,null,null,null,null,null,null,null,null,null,null,null,null,null,null,null,null,null,null,null,null,null,null,null,null,null,null,null,null,null,null,null,null,null,null,null,null,null,null,null,null,null,null,null,null,null,null,null,null,null,null,null,null,null,null,null,null,null,null,null,null,"На каждые 10 мм изменения глубины отверстия добавлять (уменьшать) к расценке: 46-08-012-01"]
["16\n* Материалы заказчика","ТССЦ-509-2631\nПриказ Администрации ЛО от 20.10.15 №28\nПрименительно","Капсула с клеевым составом Hilti HVU-TZ M20",null,null,"шт.",296,0,0,0,0,"1,2",null,null,null,null,null,null,null,null,null,null,null,null,null,null,null,null,null,null,null,null,null,null,null,null,null,null,null,null,null,null,null,null,null,null,null,null,null,null,null,null,null,null,null,null,null,null,null,null,null,null,null,null,null,null,null,null,null,null,null,null,null,null,null,null,null,null,"Капсула с клеевым составом Hilti HVU-TZ M20"]
["17\n* Материалы заказчика","ТССЦ-509-4616\nПриказ Администрации ЛО от 20.10.15 №28\nПрименительно","Шпилька анкерная Hilti: HIT-V-5,8 М16х300 (HAS) для использования с химическими анкерами HIT",null,null,"шт.",296,0,0,0,0,"1,2",null,null,null,null,null,null,null,null,null,null,null,null,null,null,null,null,null,null,null,null,null,null,null,null,null,null,null,null,null,null,null,null,null,null,null,null,null,null,null,null,null,null,null,null,null,null,null,null,null,null,null,null,null,null,null,null,null,null,null,null,null,null,null,null,null,null,"Шпилька анкерная Hilti: HIT-V-5,8 М16х300 (HAS) для использования с химическими анкерами HIT"]
["Крепление тормозных упоров крацер-крана к роствергу",null,null,null,null,null,null,0,0,0,0,"1,2",null,null,null,null,null,null,null,null,null,null,null,null,null,null,null,null,null,null,null,null,null,null,null,null,null,null,null,null,null,null,null,null,null,null,null,null,null,null,null,null,null,null,null,null,null,null,null,null,null,null,null,null,null,null,null,null,null,null,null,null,null,null,null,null,null,null,null,null,null,null,null,"Крепление тормозных упоров крацер-крана к роствергу"]
["18","ТЕР46-08-012-05\nПриказ Администрации ЛО от 20.10.15 №28","Установка анкеров в отверстия глубиной 100 мм с применением смесей серии MASTERFLOW, диаметр анкера: 20 мм и более",null,null,"100 шт.",0.24,10337.620000000001,12405.14,0,0,"1,2",null,null,null,null,null,null,null,null,null,null,null,null,null,null,null,null,null,null,null,null,null,null,null,null,null,null,null,null,null,null,null,null,null,null,null,null,null,null,null,null,null,null,null,null,null,null,null,null,null,null,null,null,null,null,null,null,null,null,null,null,null,null,null,null,null,null,"Установка анкеров в отверстия глубиной 100 мм с применением смесей серии MASTERFLOW, диаметр анкера: 20 мм и более"]
["19","ТЕР46-08-012-10\nПриказ Администрации ЛО от 20.10.15 №28","На каждые 10 мм изменения глубины отверстия добавлять (уменьшать) к расценке: 46-08-012-05",null,null,"100 шт.",0.24,37418.370000000003,44902.04,0,0,"1,2",null,null,null,null,null,null,null,null,null,null,null,null,null,null,null,null,null,null,null,null,null,null,null,null,null,null,null,null,null,null,null,null,null,null,null,null,null,null,null,null,null,null,null,null,null,null,null,null,null,null,null,null,null,null,null,null,null,null,null,null,null,null,null,null,null,null,"На каждые 10 мм изменения глубины отверстия добавлять (уменьшать) к расценке: 46-08-012-05"]
["20\n* Материалы заказчика","ТССЦ-509-4614\nПриказ Администрации ЛО от 20.10.15 №28\nприменительно","Анкер химический (капсула с клеевым составом) Hilti HVU М24/210",null,null,"шт.",24,0,0,0,0,"1,2",null,null,null,null,null,null,null,null,null,null,null,null,null,null,null,null,null,null,null,null,null,null,null,null,null,null,null,null,null,null,null,null,null,null,null,null,null,null,null,null,null,null,null,null,null,null,null,null,null,null,null,null,null,null,null,null,null,null,null,null,null,null,null,null,null,null,"Анкер химический (капсула с клеевым составом) Hilti HVU М24/210"]
["21\n* Материалы заказчика","ТССЦ-509-4617\nПриказ Администрации ЛО от 20.10.15 №28\nПрименительно","Шпилька анкерная Hilti: HIT-V-5,8 М24х450 (HAS) для использования с химическими анкерами HIT",null,null,"шт.",24,0,0,0,0,"1,2",null,null,null,null,null,null,null,null,null,null,null,null,null,null,null,null,null,null,null,null,null,null,null,null,null,null,null,null,null,null,null,null,null,null,null,null,null,null,null,null,null,null,null,null,null,null,null,null,null,null,null,null,null,null,null,null,null,null,null,null,null,null,null,null,null,null,"Шпилька анкерная Hilti: HIT-V-5,8 М24х450 (HAS) для использования с химическими анкерами HIT"]
["Крепление крацер-крана в сервесном положении",null,null,null,null,null,null,{"$f":"I46/L45","v":0},0,{"$f":"K46/L45","v":0},0,"1,2",null,null,null,null,null,null,null,null,null,null,null,null,null,null,null,null,null,null,null,null,null,null,null,null,null,null,null,null,null,null,null,null,null,null,null,null,null,null,null,null,null,null,null,null,null,null,null,null,null,null,null,null,null,null,null,null,null,null,null,null,null,null,null,null,null,null,null,null,null,null,null,"Крепление крацер-крана в сервесном положении"]
["22","ТЕР46-08-012-01\nПриказ Администрации ЛО от 20.10.15 №28","Установка анкеров в отверстия глубиной 100 мм с применением смесей серии MASTERFLOW, диаметр анкера: до 8 мм",null,null,"100 шт.",0.24,4287.24,5144.6899999999996,0,0,"1,2",null,null,null,null,null,null,null,null,null,null,null,null,null,null,null,null,null,null,null,null,null,null,null,null,null,null,null,null,null,null,null,null,null,null,null,null,null,null,null,null,null,null,null,null,null,null,null,null,null,null,null,null,null,null,null,null,null,null,null,null,null,null,null,null,null,null,"Установка анкеров в отверстия глубиной 100 мм с применением смесей серии MASTERFLOW, диаметр анкера: до 8 мм"]
["23","ТЕР46-08-012-06\nПриказ Администрации ЛО от 20.10.15 №28","На каждые 10 мм изменения глубины отверстия добавлять (уменьшать) к расценке: 46-08-012-01",null,null,"100 шт.",0.24,11019.68,13223.62,0,0,"1,2",null,null,null,null,null,null,null,null,null,null,null,null,null,null,null,null,null,null,null,null,null,null,null,null,null,null,null,null,null,null,null,null,null,null,null,null,null,null,null,null,null,null,null,null,null,null,null,null,null,null,null,null,null,null,null,null,null,null,null,null,null,null,null,null,null,null,"На каждые 10 мм изменения глубины отверстия добавлять (уменьшать) к расценке: 46-08-012-01"]
["24\n* Материалы заказчика","ТССЦ-509-2631\nПриказ Администрации ЛО от 20.10.15 №28\nПрименительно","Капсула с клеевым составом Hilti HVU-TZ M20",null,null,"шт.",24,0,0,0,0,"1,2",null,null,null,null,null,null,null,null,null,null,null,null,null,null,null,null,null,null,null,null,null,null,null,null,null,null,null,null,null,null,null,null,null,null,null,null,null,null,null,null,null,null,null,null,null,null,null,null,null,null,null,null,null,null,null,null,null,null,null,null,null,null,null,null,null,null,"Капсула с клеевым составом Hilti HVU-TZ M20"]
["25\n* Материалы заказчика","ТССЦ-509-4616\nПриказ Администрации ЛО от 20.10.15 №28\nПрименительно","Шпилька анкерная Hilti: HIT-V-5,8 М16х300 (HAS) для использования с химическими анкерами HIT",null,null,"шт.",24,0,0,0,0,"1,2",null,null,null,null,null,null,null,null,null,null,null,null,null,null,null,null,null,null,null,null,null,null,null,null,null,null,null,null,null,null,null,null,null,null,null,null,null,null,null,null,null,null,null,null,null,null,null,null,null,null,null,null,null,null,null,null,null,null,null,null,null,null,null,null,null,null,"Шпилька анкерная Hilti: HIT-V-5,8 М16х300 (HAS) для использования с химическими анкерами HIT"]
["Крепление стоек хвостовой станции к ростверку",null,null,null,null,null,null,0,0,0,0,"1,2",null,null,null,null,null,null,null,null,null,null,null,null,null,null,null,null,null,null,null,null,null,null,null,null,null,null,null,null,null,null,null,null,null,null,null,null,null,null,null,null,null,null,null,null,null,null,null,null,null,null,null,null,null,null,null,null,null,null,null,null,null,null,null,null,null,null,null,null,null,null,null,"Крепление стоек хвостовой станции к ростверку"]
["26","ТЕР46-08-012-05\nПриказ Администрации ЛО от 20.10.15 №28","Установка анкеров в отверстия глубиной 100 мм с применением смесей серии MASTERFLOW, диаметр анкера: 20 мм и более",null,null,"100 шт.",0.16,6891.73,8270.07,0,0,"1,2",null,null,null,null,null,null,null,null,null,null,null,null,null,null,null,null,null,null,null,null,null,null,null,null,null,null,null,null,null,null,null,null,null,null,null,null,null,null,null,null,null,null,null,null,null,null,null,null,null,null,null,null,null,null,null,null,null,null,null,null,null,null,null,null,null,null,"Установка анкеров в отверстия глубиной 100 мм с применением смесей серии MASTERFLOW, диаметр анкера: 20 мм и более"]
["27","ТЕР46-08-012-10\nПриказ Администрации ЛО от 20.10.15 №28","На каждые 10 мм изменения глубины отверстия добавлять (уменьшать) к расценке: 46-08-012-05",null,null,"100 шт.",0.16,18709.18,22451.02,0,0,"1,2",null,null,null,null,null,null,null,null,null,null,null,null,null,null,null,null,null,null,null,null,null,null,null,null,null,null,null,null,null,null,null,null,null,null,null,null,null,null,null,null,null,null,null,null,null,null,null,null,null,null,null,null,null,null,null,null,null,null,null,null,null,null,null,null,null,null,"На каждые 10 мм изменения глубины отверстия добавлять (уменьшать) к расценке: 46-08-012-05"]
["28\n* Материалы заказчика","ТССЦ-509-4614\nПриказ Администрации ЛО от 20.10.15 №28\nприменительно","Анкер химический (капсула с клеевым составом) Hilti HVU М24/210",null,null,"шт.",16,0,0,0,0,"1,2",null,null,null,null,null,null,null,null,null,null,null,null,null,null,null,null,null,null,null,null,null,null,null,null,null,null,null,null,null,null,null,null,null,null,null,null,null,null,null,null,null,null,null,null,null,null,null,null,null,null,null,null,null,null,null,null,null,null,null,null,null,null,null,null,null,null,"Анкер химический (капсула с клеевым составом) Hilti HVU М24/210"]
["29\n* Материалы заказчика","ТССЦ-509-4617\nПриказ Администрации ЛО от 20.10.15 №28\nПрименительно","Шпилька анкерная Hilti: HIT-V-5,8 М24х450 (HAS) для использования с химическими анкерами HIT",null,null,"шт.",16,0,0,0,0,"1,2",null,null,null,null,null,null,null,null,null,null,null,null,null,null,null,null,null,null,null,null,null,null,null,null,null,null,null,null,null,null,null,null,null,null,null,null,null,null,null,null,null,null,null,null,null,null,null,null,null,null,null,null,null,null,null,null,null,null,null,null,null,null,null,null,null,null,"Шпилька анкерная Hilti: HIT-V-5,8 М24х450 (HAS) для использования с химическими анкерами HIT"]
["30","ТЕР46-03-014-01\nПриказ Администрации ЛО от 20.10.15 №28","Сверление вертикальных отверстий в железобетонных конструкциях полов перфоратором глубиной 200 мм диаметром: 20 мм",null,null,"100 отверстий",0.08,2227.9899999999998,2673.59,0,0,"1,2",null,null,null,null,null,null,null,null,null,null,null,null,null,null,null,null,null,null,null,null,null,null,null,null,null,null,null,null,null,null,null,null,null,null,null,null,null,null,null,null,null,null,null,null,null,null,null,null,null,null,null,null,null,null,null,null,null,null,null,null,null,null,null,null,null,null,"Сверление вертикальных отверстий в железобетонных конструкциях полов перфоратором глубиной 200 мм диаметром: 20 мм"]
["31","ТЕР46-03-014-14\nПриказ Администрации ЛО от 20.10.15 №28","На каждые 10 мм изменения глубины сверления добавлять или исключать: к расценке 46-03-014-01",null,null,"100 отверстий",-0.08,-953.46,-1144.1500000000001,0,0,"1,2",null,null,null,null,null,null,null,null,null,null,null,null,null,null,null,null,null,null,null,null,null,null,null,null,null,null,null,null,null,null,null,null,null,null,null,null,null,null,null,null,null,null,null,null,null,null,null,null,null,null,null,null,null,null,null,null,null,null,null,null,null,null,null,null,null,null,"На каждые 10 мм изменения глубины сверления добавлять или исключать: к расценке 46-03-014-01"]
["32","ТЕР06-01-015-03\nПриказ Администрации ЛО от 20.10.15 №28","Установка анкерных болтов: при бетонировании со связями из арматуры",null,null,"1 т",2.317E-3,809.2,971.04,231.37,277.64,"1,2",null,null,null,null,null,null,null,null,null,null,null,null,null,null,null,null,null,null,null,null,null,null,null,null,null,null,null,null,null,null,null,null,null,null,null,null,null,null,null,null,null,null,null,null,null,null,null,null,null,null,null,null,null,null,null,null,null,null,null,null,null,null,null,null,null,null,"Установка анкерных болтов: при бетонировании со связями из арматуры"]
["Крепление тормазных упоров мобильного бункера",null,null,null,null,null,null,0,0,0,0,"1,2",null,null,null,null,null,null,null,null,null,null,null,null,null,null,null,null,null,null,null,null,null,null,null,null,null,null,null,null,null,null,null,null,null,null,null,null,null,null,null,null,null,null,null,null,null,null,null,null,null,null,null,null,null,null,null,null,null,null,null,null,null,null,null,null,null,null,null,null,null,null,null,"Крепление тормазных упоров мобильного бункера"]
["33","ТЕР46-08-012-05\nПриказ Администрации ЛО от 20.10.15 №28","Установка анкеров в отверстия глубиной 100 мм с применением смесей серии MASTERFLOW, диаметр анкера: 20 мм и более",null,null,"100 шт.",0.18,7753.24,9303.89,0,0,"1,2",null,null,null,null,null,null,null,null,null,null,null,null,null,null,null,null,null,null,null,null,null,null,null,null,null,null,null,null,null,null,null,null,null,null,null,null,null,null,null,null,null,null,null,null,null,null,null,null,null,null,null,null,null,null,null,null,null,null,null,null,null,null,null,null,null,null,"Установка анкеров в отверстия глубиной 100 мм с применением смесей серии MASTERFLOW, диаметр анкера: 20 мм и более"]
["34","ТЕР46-08-012-10\nПриказ Администрации ЛО от 20.10.15 №28","На каждые 10 мм изменения глубины отверстия добавлять (уменьшать) к расценке: 46-08-012-05",null,null,"100 шт.",0.18,21047.85,25257.42,0,0,"1,2",null,null,null,null,null,null,null,null,null,null,null,null,null,null,null,null,null,null,null,null,null,null,null,null,null,null,null,null,null,null,null,null,null,null,null,null,null,null,null,null,null,null,null,null,null,null,null,null,null,null,null,null,null,null,null,null,null,null,null,null,null,null,null,null,null,null,"На каждые 10 мм изменения глубины отверстия добавлять (уменьшать) к расценке: 46-08-012-05"]
["35\n* Материалы заказчика","ТССЦ-509-4614\nПриказ Администрации ЛО от 20.10.15 №28\nприменительно","Анкер химический (капсула с клеевым составом) Hilti HVU М24/210",null,null,"шт.",18,0,0,0,0,"1,2",null,null,null,null,null,null,null,null,null,null,null,null,null,null,null,null,null,null,null,null,null,null,null,null,null,null,null,null,null,null,null,null,null,null,null,null,null,null,null,null,null,null,null,null,null,null,null,null,null,null,null,null,null,null,null,null,null,null,null,null,null,null,null,null,null,null,"Анкер химический (капсула с клеевым составом) Hilti HVU М24/210"]
["36\n* Материалы заказчика","ТССЦ-509-4617\nПриказ Администрации ЛО от 20.10.15 №28\nПрименительно","Шпилька анкерная Hilti: HIT-V-5,8 М24х450 (HAS) для использования с химическими анкерами HIT",null,null,"шт.",18,0,0,0,0,"1,2",null,null,null,null,null,null,null,null,null,null,null,null,null,null,null,null,null,null,null,null,null,null,null,null,null,null,null,null,null,null,null,null,null,null,null,null,null,null,null,null,null,null,null,null,null,null,null,null,null,null,null,null,null,null,null,null,null,null,null,null,null,null,null,null,null,null,"Шпилька анкерная Hilti: HIT-V-5,8 М24х450 (HAS) для использования с химическими анкерами HIT"]
["37","ТЕР46-03-014-01\nПриказ Администрации ЛО от 20.10.15 №28","Сверление вертикальных отверстий в железобетонных конструкциях полов перфоратором глубиной 200 мм диаметром: 20 мм",null,null,"100 отверстий",0.18,5012.9399999999996,6015.53,0,0,"1,2",null,null,null,null,null,null,null,null,null,null,null,null,null,null,null,null,null,null,null,null,null,null,null,null,null,null,null,null,null,null,null,null,null,null,null,null,null,null,null,null,null,null,null,null,null,null,null,null,null,null,null,null,null,null,null,null,null,null,null,null,null,null,null,null,null,null,"Сверление вертикальных отверстий в железобетонных конструкциях полов перфоратором глубиной 200 мм диаметром: 20 мм"]
["38","ТЕР46-03-014-14\nПриказ Администрации ЛО от 20.10.15 №28","На каждые 10 мм изменения глубины сверления добавлять или исключать: к расценке 46-03-014-01",null,null,"100 отверстий",-0.18,-2145.27,-2574.3200000000002,0,0,"1,2",null,null,null,null,null,null,null,null,null,null,null,null,null,null,null,null,null,null,null,null,null,null,null,null,null,null,null,null,null,null,null,null,null,null,null,null,null,null,null,null,null,null,null,null,null,null,null,null,null,null,null,null,null,null,null,null,null,null,null,null,null,null,null,null,null,null,"На каждые 10 мм изменения глубины сверления добавлять или исключать: к расценке 46-03-014-01"]
["39","ТЕР06-01-015-03\nПриказ Администрации ЛО от 20.10.15 №28","Установка анкерных болтов: при бетонировании со связями из арматуры",null,null,"1 т",4.0860000000000002E-3,285.39999999999998,342.48,408.02,489.62,"1,2",null,null,null,null,null,null,null,null,null,null,null,null,null,null,null,null,null,null,null,null,null,null,null,null,null,null,null,null,null,null,null,null,null,null,null,null,null,null,null,null,null,null,null,null,null,null,null,null,null,null,null,null,null,null,null,null,null,null,null,null,null,null,null,null,null,null,"Установка анкерных болтов: при бетонировании со связями из арматуры"]
["Крепление стоек вертикального гравитационного натяжного устройтсва к ростверку",null,null,null,null,null,null,0,0,0,0,"1,2",null,null,null,null,null,null,null,null,null,null,null,null,null,null,null,null,null,null,null,null,null,null,null,null,null,null,null,null,null,null,null,null,null,null,null,null,null,null,null,null,null,null,null,null,null,null,null,null,null,null,null,null,null,null,null,null,null,null,null,null,null,null,null,null,null,null,null,null,null,null,null,"Крепление стоек вертикального гравитационного натяжного устройтсва к ростверку"]
["40","ТЕР46-08-012-01\nПриказ Администрации ЛО от 20.10.15 №28","Установка анкеров в отверстия глубиной 100 мм с применением смесей серии MASTERFLOW, диаметр анкера: до 8 мм",null,null,"100 шт.",0.04,714.51,857.41,0,0,"1,2",null,null,null,null,null,null,null,null,null,null,null,null,null,null,null,null,null,null,null,null,null,null,null,null,null,null,null,null,null,null,null,null,null,null,null,null,null,null,null,null,null,null,null,null,null,null,null,null,null,null,null,null,null,null,null,null,null,null,null,null,null,null,null,null,null,null,"Установка анкеров в отверстия глубиной 100 мм с применением смесей серии MASTERFLOW, диаметр анкера: до 8 мм"]
["41","ТЕР46-08-012-06\nПриказ Администрации ЛО от 20.10.15 №28","На каждые 10 мм изменения глубины отверстия добавлять (уменьшать) к расценке: 46-08-012-01",null,null,"100 шт.",0.04,1836.58,2203.9,0,0,"1,2",null,null,null,null,null,null,null,null,null,null,null,null,null,null,null,null,null,null,null,null,null,null,null,null,null,null,null,null,null,null,null,null,null,null,null,null,null,null,null,null,null,null,null,null,null,null,null,null,null,null,null,null,null,null,null,null,null,null,null,null,null,null,null,null,null,null,"На каждые 10 мм изменения глубины отверстия добавлять (уменьшать) к расценке: 46-08-012-01"]
["42\n* Материалы заказчика","ТССЦ-509-2631\nПриказ Администрации ЛО от 20.10.15 №28\nПрименительно","Капсула с клеевым составом Hilti HVU-TZ M20",null,null,"шт.",4,0,0,0,0,"1,2",null,null,null,null,null,null,null,null,null,null,null,null,null,null,null,null,null,null,null,null,null,null,null,null,null,null,null,null,null,null,null,null,null,null,null,null,null,null,null,null,null,null,null,null,null,null,null,null,null,null,null,null,null,null,null,null,null,null,null,null,null,null,null,null,null,null,"Капсула с клеевым составом Hilti HVU-TZ M20"]
["43\n* Материалы заказчика","ТССЦ-509-4616\nПриказ Администрации ЛО от 20.10.15 №28\nПрименительно","Шпилька анкерная Hilti: HIT-V-5,8 М16х300 (HAS) для использования с химическими анкерами HIT",null,null,"шт.",4,0,0,0,0,"1,2",null,null,null,null,null,null,null,null,null,null,null,null,null,null,null,null,null,null,null,null,null,null,null,null,null,null,null,null,null,null,null,null,null,null,null,null,null,null,null,null,null,null,null,null,null,null,null,null,null,null,null,null,null,null,null,null,null,null,null,null,null,null,null,null,null,null,"Шпилька анкерная Hilti: HIT-V-5,8 М16х300 (HAS) для использования с химическими анкерами HIT"]
["Крепление стоек орграждения к роствергу",null,null,null,null,null,null,0,0,0,0,"1,2",null,null,null,null,null,null,null,null,null,null,null,null,null,null,null,null,null,null,null,null,null,null,null,null,null,null,null,null,null,null,null,null,null,null,null,null,null,null,null,null,null,null,null,null,null,null,null,null,null,null,null,null,null,null,null,null,null,null,null,null,null,null,null,null,null,null,null,null,null,null,null,"Крепление стоек орграждения к роствергу"]
["44","ТЕР46-08-012-01\nПриказ Администрации ЛО от 20.10.15 №28","Установка анкеров в отверстия глубиной 100 мм с применением смесей серии MASTERFLOW, диаметр анкера: до 8 мм",null,null,"100 шт.",24,428723.82,514468.58,0,0,"1,2",null,null,null,null,null,null,null,null,null,null,null,null,null,null,null,null,null,null,null,null,null,null,null,null,null,null,null,null,null,null,null,null,null,null,null,null,null,null,null,null,null,null,null,null,null,null,null,null,null,null,null,null,null,null,null,null,null,null,null,null,null,null,null,null,null,null,"Установка анкеров в отверстия глубиной 100 мм с применением смесей серии MASTERFLOW, диаметр анкера: до 8 мм"]
["45","ТЕР46-08-012-06\nПриказ Администрации ЛО от 20.10.15 №28","На каждые 10 мм изменения глубины отверстия добавлять (уменьшать) к расценке: 46-08-012-01",null,null,"100 шт.",24,367322.89,440787.47,0,0,"1,2",null,null,null,null,null,null,null,null,null,null,null,null,null,null,null,null,null,null,null,null,null,null,null,null,null,null,null,null,null,null,null,null,null,null,null,null,null,null,null,null,null,null,null,null,null,null,null,null,null,null,null,null,null,null,null,null,null,null,null,null,null,null,null,null,null,null,"На каждые 10 мм изменения глубины отверстия добавлять (уменьшать) к расценке: 46-08-012-01"]
["46\n* Материалы заказчика","ТССЦ-509-2631\nПриказ Администрации ЛО от 20.10.15 №28\nПрименительно","Капсула с клеевым составом Hilti HVU-TZ M20",null,null,"шт.",24,0,0,0,0,"1,2",null,null,null,null,null,null,null,null,null,null,null,null,null,null,null,null,null,null,null,null,null,null,null,null,null,null,null,null,null,null,null,null,null,null,null,null,null,null,null,null,null,null,null,null,null,null,null,null,null,null,null,null,null,null,null,null,null,null,null,null,null,null,null,null,null,null,"Капсула с клеевым составом Hilti HVU-TZ M20"]
["47\n* Материалы заказчика","ТССЦ-509-4616\nПриказ Администрации ЛО от 20.10.15 №28\nПрименительно","Шпилька анкерная Hilti: HIT-V-5,8 М16х300 (HAS) для использования с химическими анкерами HIT",null,null,"шт.",24,0,0,0,0,"1,2",null,null,null,null,null,null,null,null,null,null,null,null,null,null,null,null,null,null,null,null,null,null,null,null,null,null,null,null,null,null,null,null,null,null,null,null,null,null,null,null,null,null,null,null,null,null,null,null,null,null,null,null,null,null,null,null,null,null,null,null,null,null,null,null,null,null,"Шпилька анкерная Hilti: HIT-V-5,8 М16х300 (HAS) для использования с химическими анкерами HIT"]
["Крепление лебедки обслуживания к росвергу",null,null,null,null,null,null,0,0,0,0,"1,2",null,null,null,null,null,null,null,null,null,null,null,null,null,null,null,null,null,null,null,null,null,null,null,null,null,null,null,null,null,null,null,null,null,null,null,null,null,null,null,null,null,null,null,null,null,null,null,null,null,null,null,null,null,null,null,null,null,null,null,null,null,null,null,null,null,null,null,null,null,null,null,"Крепление лебедки обслуживания к росвергу"]
["48","ТЕР46-08-012-01\nПриказ Администрации ЛО от 20.10.15 №28","Установка анкеров в отверстия глубиной 100 мм с применением смесей серии MASTERFLOW, диаметр анкера: до 8 мм",null,null,"100 шт.",0.04,{"$f":"I78/L77","v":714.51},857.41,{"$f":"K78/L77","v":0},0,"1,2",null,null,null,null,null,null,null,null,null,null,null,null,null,null,null,null,null,null,null,null,null,null,null,null,null,null,null,null,null,null,null,null,null,null,null,null,null,null,null,null,null,null,null,null,null,null,null,null,null,null,null,null,null,null,null,null,null,null,null,null,null,null,null,null,null,null,"Установка анкеров в отверстия глубиной 100 мм с применением смесей серии MASTERFLOW, диаметр анкера: до 8 мм"]
["49","ТЕР46-08-012-06\nПриказ Администрации ЛО от 20.10.15 №28","На каждые 10 мм изменения глубины отверстия добавлять (уменьшать) к расценке: 46-08-012-01",null,null,"100 шт.",0.04,1836.58,2203.9,0,0,"1,2",null,null,null,null,null,null,null,null,null,null,null,null,null,null,null,null,null,null,null,null,null,null,null,null,null,null,null,null,null,null,null,null,null,null,null,null,null,null,null,null,null,null,null,null,null,null,null,null,null,null,null,null,null,null,null,null,null,null,null,null,null,null,null,null,null,null,"На каждые 10 мм изменения глубины отверстия добавлять (уменьшать) к расценке: 46-08-012-01"]
["50\n* Материалы заказчика","ТССЦ-509-2631\nПриказ Администрации ЛО от 20.10.15 №28\nПрименительно","Капсула с клеевым составом Hilti HVU-TZ M20",null,null,"шт.",4,0,0,0,0,"1,2",null,null,null,null,null,null,null,null,null,null,null,null,null,null,null,null,null,null,null,null,null,null,null,null,null,null,null,null,null,null,null,null,null,null,null,null,null,null,null,null,null,null,null,null,null,null,null,null,null,null,null,null,null,null,null,null,null,null,null,null,null,null,null,null,null,null,"Капсула с клеевым составом Hilti HVU-TZ M20"]
["51\n* Материалы заказчика","ТССЦ-509-4616\nПриказ Администрации ЛО от 20.10.15 №28\nПрименительно","Шпилька анкерная Hilti: HIT-V-5,8 М16х300 (HAS) для использования с химическими анкерами HIT",null,null,"шт.",4,0,0,0,0,"1,2",null,null,null,null,null,null,null,null,null,null,null,null,null,null,null,null,null,null,null,null,null,null,null,null,null,null,null,null,null,null,null,null,null,null,null,null,null,null,null,null,null,null,null,null,null,null,null,null,null,null,null,null,null,null,null,null,null,null,null,null,null,null,null,null,null,null,"Шпилька анкерная Hilti: HIT-V-5,8 М16х300 (HAS) для использования с химическими анкерами HIT"]
["Итоги по смете:",null,null,null,null,null,null,null,{"$f":"SUM(I13:I81)","v":25855366.300000001},null,{"$f":"SUM(K13:K81)","v":371978.92},"1,2",null,null,null,null,null,null,null,null,null,null,null,null,null,null,null,null,null,null,null,null,null,null,null,null,null,null,null,null,null,null,null,null,null,null,null,null,null,null,null,null,null,null,null,null,null,null,null,null,null,null,null,null,null,null,null,null,null,null,null,null,null,null,null,null,null,null,null,null,null,null,null,null,"Итоги по смете:"]
["Итоги по смете:",null,null,null,null,null,null,null,{"$f":"I82+K82","v":26227345.219999999},null,null,"1,2",null,null,null,null,null,null,null,null,null,null,null,null,null,null,null,null,null,null,null,null,null,null,null,null,null,null,null,null,null,null,null,null,null,null,null,null,null,null,null,null,null,null,null,null,null,null,null,null,null,null,null,null,null,null,null,null,null,null,null,null,null,null,null,null,null,null,null,null,null,null,null,null,"Итоги по смете:"]

{"sheet":"3.2-КЖ1_индикатив","index":2,"n_rows":79,"n_cols":75,"rows_kept":79,"cut":false,"hidden":false,"merged":[[14,2,14,4],[1,0,1,6],[2,0,2,6],[4,0,4,6],[5,0,5,6],[6,0,6,6],[7,0,7,6],[9,2,9,4],[10,2,10,4],[11,0,11,6],[12,2,12,4],[13,2,13,4],[26,2,26,4],[15,0,15,6],[16,2,16,4],[17,2,17,4],[18,2,18,4],[19,0,19,6],[20,2,20,4],[21,2,21,4],[22,2,22,4],[23,2,23,4],[24,2,24,4],[25,2,25,6],[38,2,38,4],[27,2,27,4],[28,0,28,6],[29,0,29,6],[30,0,30,6],[31,0,31,6],[32,0,32,6],[33,0,33,6],[34,2,34,4],[35,2,35,4],[36,2,36,6],[37,2,37,4],[50,2,50,4],[39,0,39,6],[40,2,40,4],[41,2,41,4],[42,2,42,6],[43,2,43,4],[44,2,44,4],[45,0,45,6],[46,2,46,4],[47,2,47,4],[48,2,48,6],[49,2,49,4],[62,2,62,4],[51,0,51,6],[52,2,52,4],[53,2,53,4],[54,2,54,6],[55,2,55,4],[56,2,56,4],[57,2,57,4],[58,2,58,4],[59,2,59,6],[60,2,60,4],[61,0,61,6],[74,2,74,6],[63,2,63,4],[64,2,64,6],[65,2,65,4],[66,2,66,4],[67,2,67,4],[68,2,68,4],[69,2,69,6],[70,2,70,4],[71,0,71,6],[72,2,72,4],[73,2,73,4],[75,2,75,4],[76,2,76,4],[77,0,77,4],[78,0,78,4],[78,8,78,10]]}
[]
["Терминал по перевалке минеральных удобрений в морском торговом порту Усть-Луга. Береговые объекты терминала"]
["(наименование стройки)"]
[]
["ЛОКАЛЬНАЯ СМЕТА № 1632-2021-3.1-КЖ2_07.03.010-В02"]
["(локальная смета)"]
["на Конструкции железобетонные. Ростверк., 07.03.010 Крытый склад № 2 (код SAP 01.01.001) код ГП 3.1"]
["(наименование работ и затрат, наименование объекта)"]
[]
["№ п/п","Обоснование","Наименование работ и затрат",null,null,"Единица измерения","Кол-во","Цена за ед.изм. работ, руб. с НДС","Стоимость работ, всего, руб., с НДС","Цена за ед.изм. материалов, руб. с НДС","Стоимость материалов, всего, руб., с НДС"]
[1,2,3,null,null,4,5,"6","7","8","9"]
["Раздел 1. Рельсовый путь № 1"]
["1","ТЕР09-03-005-02\nПриказ Администрации ЛО от 20.10.15 №28","Монтаж подкрановых путей: по металлическим  подкрановым балкам для рельсов типа КР\n//вес 83,09 кг./м",null,null,"100 м рельса в одну нитку",7.6948999999999996,{"$f":"I13/L13","v":19606636.609999999},23527963.93,{"$f":"K13/L13","v":347298.68},416758.41,1.2]
["2\n* Материалы заказчика","ТССЦ-202-0017\nПриказ Администрации ЛО от 20.10.15 №28","Пути подкрановые, марка стали: С 255, крепления и упоры//Рельсовые комплекты",null,null,"т",29.783619999999999,{"$f":"I14/L14","v":0},null,{"$f":"K14/L14","v":0},null,1.2]
["3\n* Материалы заказчика","ТССЦ-202-0016\nПриказ Администрации ЛО от 20.10.15 №28","Пути подкрановые, марка стали: С 255, рельсы железнодорожные",null,null,"т",31.9684621,0,null,0,null,1.2]
["Раздел 2. Рельсовый путь № 2",null,null,null,null,null,null,0,0,0,0,1.2]
["4","ТЕР09-03-005-02\nПриказ Администрации ЛО от 20.10.15 №28","Монтаж подкрановых путей: по металлическим  подкрановым балкам для рельсов типа КР\n//вес 83,09 кг./м",null,null,"100 м рельса в одну нитку",8.0701999999999998,6004652.4800000004,7205582.9699999997,125465.39,150558.47,1.2]
["5\n* Материалы заказчика","ТССЦ-202-0017\nПриказ Администрации ЛО от 20.10.15 №28","Пути подкрановые, марка стали: С 255, крепления и упоры//Рельсовые комплекты",null,null,"т",31.731100000000001,0,null,0,null,1.2]
["6\n* Материалы заказчика","ТССЦ-202-0016\nПриказ Администрации ЛО от 20.10.15 №28","Пути подкрановые, марка стали: С 255, рельсы железнодорожные",null,null,"т",45.786279700000001,0,null,0,null,1.2]
["Раздел 3. Рельсовый путь № 3",null,null,null,null,null,null,0,0,0,0,1.2]
["7","ТЕР09-03-005-02\nПриказ Администрации ЛО от 20.10.15 №28","Монтаж подкрановых путей: по металлическим  подкрановым балкам для рельсов типа КР\n//вес 83,09 кг./м",null,null,"100 м рельса в одну нитку",7.7721999999999998,17334076.34,20800891.609999999,120832.47,144998.96,1.2]
["8\n* Материалы заказчика","ТССЦ-202-0017\nПриказ Администрации ЛО от 20.10.15 №28","Пути подкрановые, марка стали: С 255, крепления и упоры//Рельсовые комплекты",null,null,"т",14.42985,0,null,0,null,1.2]
["9\n* Материалы заказчика","ТССЦ-202-0016\nПриказ Администрации ЛО от 20.10.15 №28","Пути подкрановые, марка стали: С 255, рельсы железнодорожные",null,null,"т",4.8809415999999999,0,null,0,null,1.2]
["10","ТЕР46-08-012-01\nПриказ Администрации ЛО от 20.10.15 №28","Установка анкеров в отверстия глубиной 100 мм с применением смесей серии MASTERFLOW, диаметр анкера: до 8 мм",null,null,"100 шт.",15.46,55233.919999999998,66280.7,0,0,1.2]
["11","ТЕР46-08-012-06\nПриказ Администрации ЛО от 20.10.15 №28","На каждые 10 мм изменения глубины отверстия добавлять (уменьшать) к расценке: 46-08-012-01",null,null,"100 шт.",1546,14197029.439999999,17036435.329999998,0,0,1.2]
[null,null,"глубина 400: 400-100=300/10=30 ПЗ=30 (ОЗП=30; ЭМ=30 к расх.; ЗПМ=30; МАТ=30 к расх.; ТЗ=30; ТЗМ=30)",null,null,null,null,0,0,0,0,1.2]
["12\n* Материалы заказчика","ТССЦ-509-2631\nПриказ Администрации ЛО от 20.10.15 №28\nПрименительно","Капсула с клеевым составом Hilti HVU-TZ M20",null,null,"шт.",1546,0,null,0,null,1.2]
["13\n* Материалы заказчика","ТССЦ-509-4616\nПриказ Администрации ЛО от 20.10.15 №28\nПрименительно","Шпилька анкерная Hilti: HIT-V-5,8 М16х300 (HAS) для использования с химическими анкерами HIT",null,null,"шт.",1546,0,null,0,null,1.2]
["Раздел 4. Подливка из безусадочного мелкозернистого бетона",null,null,null,null,null,null,0,0,0,0,1.2]
["Рельсовый путь № 3 длинна 388,61 толщ (разрез 15-15 лист 424) 54 мм ширина (разрез 15-15 лист 424) - 400 мм",null,null,null,null,null,null,0,0,0,0,1.2]
["Рельсовый путь № 2 длинна 403,510 м толщ (разрез 3-3 лист 424) 130 мм ширина (разрез 3-3 лист 424) - 600 мм",null,null,null,null,null,null,0,0,0,0,1.2]
["Рельсовый путь № 1 длинна 384,745 м толщ (разрез 1-1 лист 424) 150 мм ширина (разрез 1-1 лист 424) - 600 мм",null,null,null,null,null,null,0,0,0,0,1.2]
["Раздел 5. Крепление опорных деталей. Лист 424,.2, 424.3",null,null,null,null,null,null,0,0,0,0,1.2]
["Крепление стоек к ростверку",null,null,null,null,null,null,0,0,0,0,1.2]
["14","ТЕР46-08-012-01\nПриказ Администрации ЛО от 20.10.15 №28","Установка анкеров в отверстия глубиной 100 мм с применением смесей серии MASTERFLOW, диаметр анкера: до 8 мм",null,null,"100 шт.",3.42,31768.44,38122.129999999997,0,0,1.2]
["15","ТЕР46-08-012-06\nПриказ Администрации ЛО от 20.10.15 №28","На каждые 10 мм изменения глубины отверстия добавлять (уменьшать) к расценке: 46-08-012-01",null,null,"100 шт.",3.42,10887.43,13064.91,0,0,1.2]
[null,null,"глубина 140: 140-100=40/10=4 ПЗ=4 (ОЗП=4; ЭМ=4 к расх.; ЗПМ=4; МАТ=4 к расх.; ТЗ=4; ТЗМ=4)",null,null,null,null,0,0,0,0,1.2]
["16\n* Материалы заказчика","ТССЦ-509-2631\nПриказ Администрации ЛО от 20.10.15 №28\nПрименительно","Капсула с клеевым составом Hilti HVU-TZ M20",null,null,"шт.",342,0,null,0,null,1.2]
["17\n* Материалы заказчика","ТССЦ-509-4616\nПриказ Администрации ЛО от 20.10.15 №28\nПрименительно","Шпилька анкерная Hilti: HIT-V-5,8 М16х300 (HAS) для использования с химическими анкерами HIT",null,null,"шт.",342,0,null,0,null,1.2]
["Крепление тормозных упоров крацер-крана к роствергу",null,null,null,null,null,null,0,0,0,0,1.2]
["18","ТЕР46-08-012-05\nПриказ Администрации ЛО от 20.10.15 №28","Установка анкеров в отверстия глубиной 100 мм с применением смесей серии MASTERFLOW, диаметр анкера: 20 мм и более",null,null,"100 шт.",0.24,5375.57,6450.68,0,0,1.2]
["19","ТЕР46-08-012-10\nПриказ Администрации ЛО от 20.10.15 №28","На каждые 10 мм изменения глубины отверстия добавлять (уменьшать) к расценке: 46-08-012-05",null,null,"100 шт.",0.24,0,0,0,0,1.2]
[null,null,"глубина 500: 500-100=400/10=40 ПЗ=40 (ОЗП=40; ЭМ=40 к расх.; ЗПМ=40; МАТ=40 к расх.; ТЗ=40; ТЗМ=40)",null,null,null,null,0,0,0,0,1.2]
["20\n* Материалы заказчика","ТССЦ-509-4614\nПриказ Администрации ЛО от 20.10.15 №28\nприменительно","Анкер химический (капсула с клеевым составом) Hilti HVU М24/210",null,null,"шт.",24,0,null,0,null,1.2]
["21\n* Материалы заказчика","ТССЦ-509-4617\nПриказ Администрации ЛО от 20.10.15 №28\nПрименительно","Шпилька анкерная Hilti: HIT-V-5,8 М24х450 (HAS) для использования с химическими анкерами HIT",null,null,"шт.",24,0,null,0,null,1.2]
["Крепление крацер-крана в сервесном положении",null,null,null,null,null,null,0,0,0,0,1.2]
["22","ТЕР46-08-012-01\nПриказ Администрации ЛО от 20.10.15 №28","Установка анкеров в отверстия глубиной 100 мм с применением смесей серии MASTERFLOW, диаметр анкера: до 8 мм",null,null,"100 шт.",0.24,2229.37,2675.24,0,0,1.2]
["23","ТЕР46-08-012-06\nПриказ Администрации ЛО от 20.10.15 №28","На каждые 10 мм изменения глубины отверстия добавлять (уменьшать) к расценке: 46-08-012-01",null,null,"100 шт.",0.24,5730.24,6876.29,0,0,1.2]
[null,null,"глубина 400: 400-100=300/10=30 ПЗ=30 (ОЗП=30; ЭМ=30 к расх.; ЗПМ=30; МАТ=30 к расх.; ТЗ=30; ТЗМ=30)",null,null,null,null,0,0,0,0,1.2]
["24\n* Материалы заказчика","ТССЦ-509-2631\nПриказ Администрации ЛО от 20.10.15 №28\nПрименительно","Капсула с клеевым составом Hilti HVU-TZ M20",null,null,"шт.",24,0,null,0,null,1.2]
["25\n* Материалы заказчика","ТССЦ-509-4616\nПриказ Администрации ЛО от 20.10.15 №28\nПрименительно","Шпилька анкерная Hilti: HIT-V-5,8 М16х300 (HAS) для использования с химическими анкерами HIT",null,null,"шт.",24,0,null,0,null,1.2]
["Крепление стоек подъемной карентки к роствергу",null,null,null,null,null,null,0,0,0,0,1.2]
["26","ТЕР46-08-012-01\nПриказ Администрации ЛО от 20.10.15 №28","Установка анкеров в отверстия глубиной 100 мм с применением смесей серии MASTERFLOW, диаметр анкера: до 8 мм",null,null,"100 шт.",0.16,1486.24,1783.49,0,0,1.2]
["27","ТЕР46-08-012-06\nПриказ Администрации ЛО от 20.10.15 №28","На каждые 10 мм изменения глубины отверстия добавлять (уменьшать) к расценке: 46-08-012-01",null,null,"100 шт.",0.16,3820.15,4584.18,0,0,1.2]
[null,null,"глубина 400: 400-100=300/10=30 ПЗ=30 (ОЗП=30; ЭМ=30 к расх.; ЗПМ=30; МАТ=30 к расх.; ТЗ=30; ТЗМ=30)",null,null,null,null,0,0,0,0,1.2]
["28\n* Материалы заказчика","ТССЦ-509-4614\nПриказ Администрации ЛО от 20.10.15 №28\nприменительно","Анкер химический (капсула с клеевым составом) Hilti HVU М24/210",null,null,"шт.",16,0,null,0,null,1.2]
["29\n* Материалы заказчика","ТССЦ-509-4617\nПриказ Администрации ЛО от 20.10.15 №28\nПрименительно","Шпилька анкерная Hilti: HIT-V-5,8 М24х450 (HAS) для использования с химическими анкерами HIT",null,null,"шт.",16,0,null,0,null,1.2]
["30","ТЕР46-03-014-01\nПриказ Администрации ЛО от 20.10.15 №28","Сверление вертикальных отверстий в железобетонных конструкциях полов перфоратором глубиной 200 мм диаметром: 20 мм",null,null,"100 отверстий",0.08,1158.55,1390.26,0,0,1.2]
["31","ТЕР46-03-014-14\nПриказ Администрации ЛО от 20.10.15 №28","На каждые 10 мм изменения глубины сверления добавлять или исключать: к расценке 46-03-014-01",null,null,"100 отверстий",-0.08,-495.79,-594.95000000000005,0,0,1.2]
[null,null,"глубина 100: 200-100=100/10=10 ПЗ=10 (ОЗП=10; ЭМ=10 к расх.; ЗПМ=10; МАТ=10 к расх.; ТЗ=10; ТЗМ=10)",null,null,null,null,0,0,0,0,1.2]
["32","ТЕР06-01-015-03\nПриказ Администрации ЛО от 20.10.15 №28","Установка анкерных болтов: при бетонировании со связями из арматуры",null,null,"1 т",2.317E-3,420.78,504.94,0,0,1.2]
["Крепление тормазных упоров мобильного бункера",null,null,null,null,null,null,0,0,0,0,1.2]
["33","ТЕР46-08-012-01\nПриказ Администрации ЛО от 20.10.15 №28","Установка анкеров в отверстия глубиной 100 мм с применением смесей серии MASTERFLOW, диаметр анкера: до 8 мм",null,null,"100 шт.",0.18,1672.03,2006.43,0,0,1.2]
["34","ТЕР46-08-012-06\nПриказ Администрации ЛО от 20.10.15 №28","На каждые 10 мм изменения глубины отверстия добавлять (уменьшать) к расценке: 46-08-012-01",null,null,"100 шт.",0.18,4297.6899999999996,5157.2299999999996,0,0,1.2]
[null,null,"глубина 400: 400-100=300/10=30 ПЗ=30 (ОЗП=30; ЭМ=30 к расх.; ЗПМ=30; МАТ=30 к расх.; ТЗ=30; ТЗМ=30)",null,null,null,null,0,0,0,0,1.2]
["35\n* Материалы заказчика","ТССЦ-509-4614\nПриказ Администрации ЛО от 20.10.15 №28\nприменительно","Анкер химический (капсула с клеевым составом) Hilti HVU М24/210",null,null,"шт.",18,0,null,0,null,1.2]
["36\n* Материалы заказчика","ТССЦ-509-4617\nПриказ Администрации ЛО от 20.10.15 №28\nПрименительно","Шпилька анкерная Hilti: HIT-V-5,8 М24х450 (HAS) для использования с химическими анкерами HIT",null,null,"шт.",18,0,null,0,null,1.2]
["37","ТЕР46-03-014-01\nПриказ Администрации ЛО от 20.10.15 №28","Сверление вертикальных отверстий в железобетонных конструкциях полов перфоратором глубиной 200 мм диаметром: 20 мм",null,null,"100 отверстий",0.18,2606.73,3128.07,0,0,1.2]
["38","ТЕР46-03-014-14\nПриказ Администрации ЛО от 20.10.15 №28","На каждые 10 мм изменения глубины сверления добавлять или исключать: к расценке 46-03-014-01",null,null,"100 отверстий",-0.18,-1115.54,-1338.65,0,0,1.2]
[null,null,"глубина 100: 200-100=100/10=10 ПЗ=10 (ОЗП=10; ЭМ=10 к расх.; ЗПМ=10; МАТ=10 к расх.; ТЗ=10; ТЗМ=10)",null,null,null,null,0,0,0,0,1.2]
["39","ТЕР06-01-015-03\nПриказ Администрации ЛО от 20.10.15 №28","Установка анкерных болтов: при бетонировании со связями из арматуры",null,null,"1 т",4.0860000000000002E-3,742.03,890.44,0,0,1.2]
["Крепление стоек орграждения к роствергу",null,null,null,null,null,null,0,0,0,0,1.2]
["40","ТЕР46-08-012-01\nПриказ Администрации ЛО от 20.10.15 №28","Установка анкеров в отверстия глубиной 100 мм с применением смесей серии MASTERFLOW, диаметр анкера: до 8 мм",null,null,"100 шт.",60,557340.93000000005,668809.11,0,0,1.2]
["41","ТЕР46-08-012-06\nПриказ Администрации ЛО от 20.10.15 №28","На каждые 10 мм изменения глубины отверстия добавлять (уменьшать) к расценке: 46-08-012-01",null,null,"100 шт.",60,477519.72,573023.66,0,0,1.2]
[null,null,"глубина 200: 200-100=100/10=10 ПЗ=10 (ОЗП=10; ЭМ=10 к расх.; ЗПМ=10; МАТ=10 к расх.; ТЗ=10; ТЗМ=10)",null,null,null,null,1124902.1100000001,1349882.53,0,0,1.2]
["42\n* Материалы заказчика","ТССЦ-509-2631\nПриказ Администрации ЛО от 20.10.15 №28\nПрименительно","Капсула с клеевым составом Hilti HVU-TZ M20",null,null,"шт.",60,0,null,0,null,1.2]
["43\n* Материалы заказчика","ТССЦ-509-4616\nПриказ Администрации ЛО от 20.10.15 №28\nПрименительно","Шпилька анкерная Hilti: HIT-V-5,8 М16х300 (HAS) для использования с химическими анкерами HIT",null,null,"шт.",60,0,null,0]
["Итоги по смете:",null,null,null,null,null,null,null,{"$f":"SUM(I13:I77)","v":71313570.530000001},null,{"$f":"SUM(K13:K77)","v":712315.84},null,null,null,null,null,null,null,null,null,null,null,null,null,null,null,null,null,null,null,null,null,null,null,null,null,null,null,null,null,null,null,null,null,null,null,null,null,null,null,null,null,null,null,null,null,null,null,null,null,null,null,null,null,null,null,null,null,null,null,null,null,null,null,"Итоги по смете:"]
["Итоги по смете:",null,null,null,null,null,null,null,{"$f":"I78+K78","v":72025886.370000005},null,null,null,null,null,null,null,null,null,null,null,null,null,null,null,null,null,null,null,null,null,null,null,null,null,null,null,null,null,null,null,null,null,null,null,null,null,null,null,null,null,null,null,null,null,null,null,null,null,null,null,null,null,null,null,null,null,null,null,null,null,null,null,null,null,"Итоги по смете:"]

{"sheet":"ТКП","index":3,"n_rows":67,"n_cols":5,"rows_kept":67,"cut":false,"hidden":false,"merged":[[14,3,14,4],[0,0,0,1],[0,3,0,4],[1,0,1,1],[1,2,1,4],[2,0,2,1],[4,0,4,1],[5,0,5,1],[7,3,7,4],[11,3,11,4],[12,3,12,4],[13,3,13,4],[53,0,53,4],[54,0,54,4],[55,0,55,4],[15,0,49,0],[15,1,49,1],[15,2,49,2],[15,3,49,4],[50,3,50,4],[51,3,51,4]]}
[null,null,null,"Коммерческое предложение к Документации о закупке № ____"]
["Наименование закупки: ",null,"Выполнение комплекса строительно-монтажных работ по монтажу подкрановых путей крытого склада №1 и №2 на объекте «Терминал по перевалке минеральных удобрений в морском торговом порту Усть-Луга».\n"]
["Исх. № ______________ от __.__.2023г."]
[]
["Наименование Участника:"]
["ИНН Участника "]
[]
["№ п/п","Наименование","Требование ООО «ЕТУ»","Предложение Участника, руб без НДС"]
[null,null,null,"Материалы","Работы"]
[1,"Выполнение комплекса работ","Объем и состав работ в соответствии с ТЗ"]
[2,"Итоговая стоимость строительно-монтажных работ"]
[3,"НДС",0.2]
[4,"Итоговая стоимость СМР, руб с НДС"]
[5,"Договорной коэффициент к сметной стоимости* ","Кд - договорной коэффициент начисляется для приведения итоговой сметной стоимости к стоимости Договора. \nКоэффициент применяется при расчете стоимости строительно-монтажных работ, за исключением стоимости материально-технических ресурсов. Коэффициент фиксируется при направлении ТКП и дальнейшей корректировке не подлежит.\n"]
[6,"Срок выполнения работ","не более 100 календарных дней с даты заключения договора ","Участником указывается согласие или встречные условия"]
[7,"Порядок оплаты","Допускается авансирование работ в объеме до 50% стоимости договора, с целью мобилизации, закупки/поставки материалов. Авансирование осуществляется при предоставлении Подрядчиком Банковской гарантии возврата авансового платежа в размере аванса.  Текст банковской гарантии и банк согласовывается с Заказчиком заранее.\nЕсли сумма аванса не превышает 5 000 000 руб. допускается авансирование без предоставления банковской гарантии, при согласовании Заказчика.\n В случае авансирования Заказчик оплачивает Подрядчику аванс в течении 10 (десяти) рабочих дней от даты подписания Договора при условии предоставления Подрядчиком счета и оригинала, согласованной с Заказчиком безотзывной банковской гарантии возврата авансового платежа.\nРасчеты за фактически выполненный Подрядчиком и принятый Заказчиком объем Работ по договору осуществляется ежемесячно в установленном порядке в течение 10 (десяти) рабочих дней с момента получения от Подрядчика счета на оплату и подписанных Сторонами без замечаний Актов о приемке выполненных работ (Форма № КС-2), Справок о стоимости выполненных работ и затрат (Форма № КС-3), полного комплекта исполнительной документации и иных необходимых документов, предусмотренных Договором, при условии предоставления счета/счет-фактуры.\nОплата выполненных Работ осуществляется Заказчиком  с удержанием денежных средств в размере 5% от стоимости выполненных Работ (гарантийное удержание) и за вычетом авансового платежа в размере ___% от стоимости выполненных за месяц Работ.\nПодрядчик обязан использовать аванс только для оплаты поставок конструкций, материалов и оборудования, а также для оплаты расходов, связанных с мобилизацией и выполнением строительных работ, предусмотренных условиями настоящего Договора. \nОкончательный расчет за выполненные Работы по Объекту производится Заказчиком после завершения всех предусмотренных Договором Работ и устранения выявленных дефектов, передачи Заказчику по акту полного комплекта исполнительной документации, в срок не позднее 10 (десяти) банковских дней с момента подписания Сторонами акт приема-передачи результата выполненных работ.","Участником указывается % аванса и согласие или встречные условия"]
[]
[]
[]
[]
[]
[]
[]
[]
[]
[]
[]
[]
[]
[]
[]
[]
[]
[]
[]
[]
[]
[]
[]
[]
[]
[]
[]
[]
[]
[]
[]
[]
[]
[]
[8,"Гарантия на выполненные работы","Гарантийный срок на результат работы Подрядчика устанавливается не менее 36  месяцев предусмотренного Договором.","Участником указывается согласие или встречные условия"]
[9,"Контактное лицо (ФИО, должность, телефон, e-mail)"]
[]
["Настоящее Предложение имеет правовой статус оферты и действует до \"  \" _____ 202_г."]
["Итоговая стоимость фиксируется в Договоре и должна включать весь комплекс работ \"под ключ\", при этом закрытие актов выполненных работ будет производиться по ценообразованию, закрепленному в Договоре"]
["* в случае, если при согласовании сметы будет выявлено, что Кд не соответствует итоговой стоимости СМР, Кд устанавливается по согласованной с Заказчиком смете по описанной в ТЗ и Договоре методике расчета"]
[]
[]
[]
["(Должность уполномоченного представителя Участника)",null,null,null,"(Подпись)"]
[]
[]
["Примечание - коммерческое предложение необходимо оформить:"]
["- на фирменном бланке;"]
["- присвоить ему номер;"]
["- указать дату;"]
["- за подписью уполномоченного лица;"]